bitfinex-derivatives/quotes_BTCF0:USTF0_20250417
["timestamp","ask_amount","ask_price","bid_price","bid_amount"]
[1744900289362,0.1190435,84018.0,84017.0,0.00511798]
[1744900289962,0.3390435,84018.0,84017.0,0.00511798]
[1744900290164,0.3390435,84018.0,84017.0,0.00519798]
[1744900290361,0.22,84018.0,84017.0,0.4798449]
[1744900290657,0.00017848,84026.0,84025.0,0.1190336]
[1744900290861,0.1190251,84032.0,84030.0,0.059513]
[1744900291063,0.1190251,84032.0,84031.0,0.2774319]
[1744900291451,0.1190251,84032.0,84031.0,0.2775119]
[1744900292052,0.1670251,84032.0,84031.0,0.1097925]
[1744900292248,0.2127251,84032.0,84031.0,0.1097925]
[1744900292452,0.2127251,84032.0,84031.0,0.0502]
[1744900292653,0.2127251,84032.0,84031.0,0.05028]
[1744900292963,0.2737,84032.0,84023.0,0.00017848]
[1744900293260,0.479835,84024.0,84023.0,0.00017848]
[1744900293456,0.479835,84024.0,84023.0,0.11921488]
[1744900293457,0.119035,84024.0,84023.0,0.11921488]
[1744900294168,0.166435,84024.0,84023.0,0.0091018]
[1744900294462,0.166435,84024.0,84023.0,0.1754382]
[1744900296264,0.166435,84024.0,84023.0,0.00025848]
[1744900296456,0.166435,84024.0,84023.0,0.00017848]
[1744900296655,0.166435,84024.0,84023.0,0.00025848]
[1744900297167,0.048,84025.0,84024.0,0.119035]
[1744900297358,0.3608,84047.0,84032.0,0.1190237]
[1744900297359,0.2380562,84033.0,84032.0,0.1190237]
[1744900297554,0.2480562,84033.0,84032.0,0.1190237]
[1744900297765,0.0595128,84031.0,84025.0,0.0595167]
[1744900297968,0.119035,84024.0,84023.0,0.00731527]
[1744900298268,0.119035,84024.0,84023.0,0.12634877]
[1744900298653,0.119035,84024.0,84023.0,0.12642877]
[1744900298876,0.479835,84024.0,84023.0,0.00739527]
[1744900299260,0.530035,84024.0,84023.0,0.00739527]
[1744900299462,0.530035,84024.0,84023.0,0.00731527]
[1744900299666,0.479835,84024.0,84023.0,0.00739527]
[1744900299856,0.119035,84024.0,84023.0,0.12643167]
[1744900300769,0.0465,84039.0,84031.0,0.178534]
[1744900301072,0.238062,84032.0,84031.0,0.2380458]
[1744900301265,0.1190232,84033.0,84032.0,0.1190222]
[1744900301865,0.1190237,84032.0,84031.0,0.00237893]
[1744900302569,0.1190237,84032.0,84031.0,0.00245893]
[1744900302757,0.1685237,84032.0,84031.0,0.00245893]
[1744900303575,0.1190237,84032.0,84031.0,0.12148403]
[1744900304768,0.1190237,84032.0,84031.0,0.00245893]
[1744900304969,0.1190237,84032.0,84031.0,0.12148403]
[1744900306074,0.1190237,84032.0,84031.0,0.00245893]
[1744900306272,0.1190237,84032.0,84031.0,0.12148403]
[1744900306469,0.1190237,84032.0,84031.0,0.12140403]
[1744900306669,0.1663237,84032.0,84031.0,0.12148403]
[1744900306970,0.1663237,84032.0,84031.0,0.00245893]
[1744900307162,0.1663237,84032.0,84031.0,0.12148403]
[1744900307368,0.1663237,84032.0,84031.0,0.00237893]
[1744900307768,0.1663237,84032.0,84031.0,0.12148403]
[1744900308073,0.2166237,84032.0,84031.0,0.12148403]
[1744900308267,0.1663237,84032.0,84031.0,0.12148403]
[1744900308471,0.0595105,84034.0,84033.0,0.1190222]
[1744900309271,0.0595105,84034.0,84033.0,0.12140113]
[1744900309472,0.00017848,84040.0,84039.0,0.1190137]
[1744900309672,0.00017848,84040.0,84039.0,0.4798137]
[1744900309974,0.11919078,84040.0,84039.0,0.4798137]
[1744900310174,0.11919078,84040.0,84039.0,0.48219263]
[1744900311264,0.00017848,84040.0,84039.0,0.48219263]
[1744900312069,0.00255741,84040.0,84039.0,0.52909263]
[1744900312271,0.00255741,84040.0,84039.0,0.5267137]
[1744900312574,0.00255741,84040.0,84039.0,0.54115605]
[1744900313165,0.14937972,84045.0,84044.0,0.1190067]
[1744900313567,0.26838492,84045.0,84044.0,0.1190067]
[1744900313967,0.26838492,84045.0,84044.0,0.2149867]
[1744900314165,0.27076385,84045.0,84044.0,0.2149867]
[1744900314368,0.27076385,84045.0,84044.0,0.2149067]
[1744900314569,0.27076385,84045.0,84044.0,0.3081867]
[1744900314763,0.12138413,84045.0,84044.0,0.3081867]
[1744900316068,0.12138413,84045.0,84044.0,0.31056563]
[1744900316276,0.1190052,84045.0,84044.0,0.31056563]
[1744900317476,0.1190052,84045.0,84044.0,0.21736563]
[1744900317687,0.2369052,84045.0,84044.0,0.00245893]
[1744900317982,0.5777052,84045.0,84044.0,0.00237893]
[1744900318284,0.5777052,84045.0,84044.0,0.00245893]
[1744900318471,0.1190251,84031.0,84027.0,0.0595149]
[1744900318666,0.1190251,84031.0,84030.0,0.5730265]
[1744900318879,0.0595113,84033.0,84032.0,0.1190237]
[1744900319379,0.0595113,84033.0,84032.0,0.16890263]
[1744900320076,0.1079113,84033.0,84032.0,0.21900263]
[1744900320475,0.1582113,84033.0,84032.0,0.21900263]
[1744900322879,0.059509,84036.0,84032.0,0.21900263]
[1744900323083,0.1190218,84034.0,84033.0,0.1785298]
[1744900323274,0.1190218,84034.0,84033.0,0.0595104]
[1744900323579,0.1667218,84034.0,84033.0,0.1056104]
[1744900323781,0.2147218,84034.0,84033.0,0.0595104]
[1744900323979,0.2147218,84034.0,84033.0,0.1056104]
[1744900324278,0.2147218,84034.0,84033.0,0.15558933]
[1744900324485,0.2147218,84034.0,84033.0,0.15566933]
[1744900325190,0.4114,84071.0,84033.0,0.09615893]
[1744900325379,0.1189931,84054.0,84045.0,0.4798052]
[1744900325689,0.059498,84052.0,84045.0,0.5730052]
[1744900325884,0.0595011,84048.0,84045.0,0.5730052]
[1744900326076,0.21394713,84046.0,84045.0,0.5730052]
[1744900326277,0.21394713,84046.0,84045.0,0.3058052]
[1744900326481,0.21394713,84046.0,84045.0,0.13928]
[1744900326684,0.21394713,84046.0,84040.0,0.5004]
[1744900326685,0.1190109,84042.0,84040.0,0.5004]
[1744900326885,0.2147109,84041.0,84040.0,0.5258109]
[1744900327287,0.2147109,84041.0,84040.0,0.52818983]
[1744900327486,0.2147109,84041.0,84040.0,0.52826983]
[1744900329585,0.2147109,84041.0,84040.0,0.00245893]
[1744900329981,0.2147109,84041.0,84040.0,0.00237893]
[1744900330184,0.2147109,84041.0,84040.0,0.00245893]
[1744900330389,0.005,84046.0,84045.0,0.1190052]
[1744900330581,0.1240038,84046.0,84045.0,0.1190052]
[1744900331190,0.005,84046.0,84045.0,0.12138413]
[1744900331591,0.1240038,84046.0,84045.0,0.12138413]
[1744900331984,0.005,84046.0,84045.0,0.12138413]
[1744900332289,0.1240038,84046.0,84045.0,0.2159052]
[1744900332480,0.1734038,84046.0,84045.0,0.2159052]
[1744900332881,0.1734038,84046.0,84045.0,0.2159852]
[1744900333390,0.17578273,84046.0,84045.0,0.2159852]
[1744900334289,0.1734038,84046.0,84045.0,0.2159852]
[1744900334886,0.1734038,84046.0,84045.0,0.2159052]
[1744900335081,0.1734038,84046.0,84045.0,0.21836413]
[1744900335793,0.005,84046.0,84045.0,0.21836413]
[1744900336092,0.005,84046.0,84045.0,0.2159852]
[1744900340199,0.005,84046.0,84045.0,0.2179852]
[1744900340586,0.005,84046.0,84045.0,0.2199852]
[1744900341295,0.005,84046.0,84045.0,0.3126252]
[1744900341697,0.005,84046.0,84045.0,0.3116252]
[1744900341903,0.005,84046.0,84045.0,0.3115452]
[1744900342288,0.005,84046.0,84045.0,0.2189852]
[1744900342484,0.005,84046.0,84045.0,0.3116252]
[1744900343299,0.005,84046.0,84045.0,0.3096252]
[1744900343600,0.005,84046.0,84045.0,0.3116252]
[1744900344092,0.00737893,84046.0,84045.0,0.3116252]
[1744900344293,0.00737893,84046.0,84045.0,0.3106252]
[1744900344901,0.00737893,84046.0,84045.0,0.3096252]
[1744900345197,0.12638273,84046.0,84045.0,0.1704852]
[1744900345392,0.12638273,84046.0,84045.0,0.1220052]
[1744900345592,0.09597893,84046.0,84045.0,0.1210852]
[1744900345793,0.09597893,84046.0,84045.0,0.1673852]
[1744900345995,0.21498273,84046.0,84045.0,0.1673852]
[1744900346201,0.2126038,84046.0,84045.0,0.16976413]
[1744900346597,0.2126038,84046.0,84045.0,0.16876413]
[1744900347000,0.2126038,84046.0,84045.0,0.16976413]
[1744900347501,0.0936,84046.0,84045.0,0.16976413]
[1744900347692,0.0936,84046.0,84045.0,0.16876413]
[1744900347890,0.2126038,84046.0,84045.0,0.16876413]
[1744900348497,0.2126038,84046.0,84045.0,0.00345893]
[1744900348703,0.2126038,84046.0,84045.0,0.00245893]
[1744900348704,0.5734038,84046.0,84045.0,0.00245893]
[1744900348998,0.5734038,84046.0,84045.0,0.00237893]
[1744900349200,0.5734038,84046.0,84045.0,8e-05]
[1744900349398,0.5734038,84046.0,84037.0,0.0595081]
[1744900349399,0.1190095,84042.0,84041.0,0.1190104]
[1744900350296,0.0595058,84041.0,84035.0,0.0595097]
[1744900350492,0.0595082,84038.0,84037.0,0.1190137]
[1744900350906,0.1527082,84038.0,84037.0,0.1190137]
[1744900351100,0.1527082,84038.0,84037.0,0.12139263]
[1744900351803,0.046,84038.0,84037.0,0.12139263]
[1744900353005,0.005,84046.0,84045.0,0.1190052]
[1744900353206,0.005,84046.0,84045.0,0.12138413]
[1744900353400,0.005,84046.0,84045.0,0.16908413]
[1744900353704,0.005,84046.0,84045.0,0.26038413]
[1744900354097,0.00737893,84046.0,84045.0,0.2580052]
[1744900355196,0.12638273,84046.0,84045.0,0.2580052]
[1744900355400,0.12638273,84046.0,84045.0,0.1643052]
[1744900355604,0.12638273,84046.0,84045.0,0.1643852]
[1744900356004,0.21598273,84046.0,84045.0,0.1190852]
[1744900356206,0.2136038,84046.0,84045.0,8e-05]
[1744900356399,0.178518,84042.0,84041.0,0.0595053]
[1744900356711,0.1190194,84035.0,84034.0,0.5394735]
[1744900356907,0.1190194,84035.0,84034.0,0.4798194]
[1744900357106,0.1190194,84035.0,84034.0,0.4798994]
[1744900357310,0.1190194,84035.0,84034.0,0.48227833]
[1744900357609,0.046,84036.0,84035.0,0.1190194]
[1744900358106,0.046,84036.0,84035.0,0.16839833]
[1744900358502,0.0448,84039.0,84038.0,0.1190152]
[1744900358895,0.1638137,84039.0,84038.0,0.1190152]
[1744900359100,0.1638137,84039.0,84038.0,0.12139413]
[1744900360105,0.1638137,84039.0,84038.0,0.12147413]
[1744900361207,0.0448,84039.0,84038.0,0.12147413]
[1744900361708,0.08994333,84041.0,84040.0,0.1190123]
[1744900362198,0.09232226,84041.0,84040.0,0.1190123]
[1744900362398,0.09232226,84041.0,84040.0,0.2146123]
[1744900362800,0.00237893,84041.0,84040.0,0.2146123]
[1744900363397,0.00237893,84041.0,84040.0,0.2156123]
[1744900364913,0.00237893,84041.0,84040.0,0.2166123]
[1744900365807,0.12801649,84056.0,84040.0,0.5176]
[1744900366006,0.02894703,84056.0,84055.0,0.8405911]
[1744900366207,0.03132596,84056.0,84055.0,0.9319511]
[1744900366911,0.03132596,84056.0,84055.0,1.0277511]
[1744900367617,0.00237893,84056.0,84055.0,1.0277511]
[1744900368011,0.00237893,84056.0,84055.0,1.0297511]
[1744900368812,0.00237893,84056.0,84055.0,1.0317511]
[1744900369212,0.00237893,84056.0,84055.0,1.0297511]
[1744900369414,0.00237893,84056.0,84055.0,1.0318311]
[1744900369620,0.00237893,84056.0,84055.0,1.0298311]
[1744900369917,0.00237893,84056.0,84055.0,1.0308311]
[1744900370507,0.00237893,84056.0,84055.0,1.0298311]
[1744900371214,0.00237893,84056.0,84055.0,1.0288311]
[1744900371419,0.00237893,84056.0,84055.0,1.0298311]
[1744900371922,0.00237893,84056.0,84055.0,1.0288311]
[1744900372110,0.00237893,84056.0,84055.0,1.0298311]
[1744900372611,0.00237893,84056.0,84055.0,1.0308311]
[1744900372912,3e-08,84056.0,84055.0,1.0298311]
[1744900373111,3e-08,84056.0,84055.0,1.0308311]
[1744900373313,0.00017848,84064.0,84063.0,0.1189798]
[1744900373516,0.00017848,84064.0,84063.0,0.4797798]
[1744900373821,0.00017848,84064.0,84063.0,0.5233798]
[1744900374017,0.00017848,84064.0,84063.0,0.5670798]
[1744900374220,0.00255741,84064.0,84063.0,0.5670798]
[1744900374419,0.00255741,84064.0,84063.0,0.57593707]
[1744900374914,0.00255741,84064.0,84063.0,0.57601707]
[1744900375130,1e-08,84064.0,84063.0,0.57601707]
[1744900375316,1e-08,84064.0,84063.0,0.58943474]
[1744900376122,1e-08,84064.0,84063.0,0.59343474]
[1744900376727,1e-08,84064.0,84063.0,0.59643474]
[1744900377615,1e-08,84064.0,84063.0,0.59543474]
[1744900378220,1e-08,84064.0,84063.0,0.59343474]
[1744900379119,1e-08,84064.0,84063.0,0.59143474]
[1744900379319,1e-08,84064.0,84063.0,0.59443474]
[1744900379925,1e-08,84064.0,84063.0,0.59243474]
[1744900380116,9e-08,84072.0,84071.0,0.1189684]
[1744900380322,9e-08,84072.0,84071.0,0.5710884]
[1744900380522,9e-08,84072.0,84071.0,0.6618884]
[1744900381119,0.00237902,84072.0,84071.0,0.6618884]
[1744900382129,0.00237902,84072.0,84071.0,0.6649684]
[1744900382426,0.00237902,84072.0,84071.0,0.6648884]
[1744900382625,0.00237902,84072.0,84071.0,0.6649684]
[1744900382823,2e-08,84072.0,84071.0,0.6649684]
[1744900383023,2e-08,84072.0,84071.0,0.6669684]
[1744900383431,2e-08,84072.0,84071.0,0.8869684]
[1744900383623,0.0474,84093.0,84092.0,0.1189387]
[1744900383827,0.2474,84093.0,84072.0,0.0594834]
[1744900384129,0.118967,84072.0,84071.0,0.005]
[1744900384326,0.118967,84072.0,84071.0,0.1239684]
[1744900384327,0.128967,84072.0,84071.0,0.1239684]
[1744900384520,0.210067,84072.0,84071.0,0.1239684]
[1744900384719,0.210067,84072.0,84071.0,0.1240484]
[1744900385123,0.42944593,84072.0,84071.0,0.00208]
[1744900385717,0.68044593,84072.0,84071.0,8e-05]
[1744900386025,0.43044593,84072.0,84071.0,8e-05]
[1744900386426,0.1189713,84069.0,84068.0,0.1158359]
[1744900386824,0.4612713,84069.0,84068.0,0.1158359]
[1744900387021,0.4712713,84069.0,84068.0,0.1158359]
[1744900387328,0.1189783,84064.0,84063.0,0.00017837]
[1744900387527,0.1189967,84051.0,84050.0,0.01359512]
[1744900387831,0.1289967,84051.0,84050.0,0.01359512]
[1744900388017,0.1785092,84046.0,84045.0,0.178498]
[1744900388631,0.2698092,84046.0,84045.0,0.178498]
[1744900389020,0.0913,84046.0,84045.0,0.2380002]
[1744900389221,0.09367893,84046.0,84045.0,0.2380002]
[1744900389634,0.09467893,84046.0,84045.0,0.2380002]
[1744900389834,0.09567893,84046.0,84045.0,0.2380002]
[1744900390324,0.09467893,84046.0,84045.0,0.2380002]
[1744900390520,0.1190067,84044.0,84043.0,0.0051164]
[1744900390720,0.1190067,84044.0,84043.0,0.1241245]
[1744900391123,0.1190067,84044.0,84043.0,0.1242045]
[1744900391530,0.1190067,84044.0,84043.0,0.1241245]
[1744900391738,0.1190067,84044.0,84043.0,0.1242045]
[1744900392632,0.001,84044.0,84043.0,0.2432111]
[1744900393037,0.001,84044.0,84043.0,0.2914111]
[1744900393226,0.00337893,84044.0,84043.0,0.2914111]
[1744900393927,0.00337893,84044.0,84043.0,0.3384111]
[1744900394533,0.00337893,84044.0,84043.0,0.2914111]
[1744900394745,0.12238563,84044.0,84043.0,0.2914111]
[1744900395031,0.00337893,84044.0,84043.0,0.2923311]
[1744900395832,0.00337893,84044.0,84043.0,0.2452111]
[1744900395833,0.00237893,84044.0,84043.0,0.2452111]
[1744900396028,0.12138563,84044.0,84043.0,0.2451311]
[1744900396229,0.12138563,84044.0,84043.0,0.2452111]
[1744900396443,0.00237893,84044.0,84043.0,0.2452111]
[1744900396633,0.00237893,84044.0,84043.0,0.2916111]
[1744900398641,0.12138563,84044.0,84043.0,0.124203]
[1744900398835,0.00237893,84044.0,84043.0,0.124203]
[1744900399238,0.1190056,84045.0,84044.0,0.1190067]
[1744900399630,0.2113056,84045.0,84044.0,0.1190067]
[1744900399844,0.2113056,84045.0,84044.0,0.1190867]
[1744900400042,0.5523,84045.0,84036.0,0.000108]
[1744900400241,0.1190237,84032.0,84031.0,0.1786805]
[1744900400539,0.1190237,84032.0,84031.0,0.1785347]
[1744900400744,0.2570237,84032.0,84031.0,0.1786147]
[1744900401242,0.2570237,84032.0,84031.0,0.18099363]
[1744900401439,0.138,84032.0,84031.0,0.24050523]
[1744900402242,0.139,84032.0,84031.0,0.24050523]
[1744900403146,0.138,84032.0,84031.0,0.24050523]
[1744900403836,0.0442,84032.0,84031.0,0.24050523]
[1744900404144,0.0437,84047.0,84046.0,0.1190038]
[1744900404340,0.00017837,84054.0,84053.0,0.1189939]
[1744900404534,0.11917087,84054.0,84053.0,0.1189939]
[1744900404842,0.1189953,84052.0,84051.0,0.0594977]
[1744900405239,0.00237893,84052.0,84051.0,0.4202977]
[1744900406043,0.00237893,84052.0,84051.0,0.0594977]
[1744900406044,0.16917423,84052.0,84051.0,0.0594977]
[1744900406734,0.16917423,84052.0,84051.0,0.0595777]
[1744900407043,0.05017893,84052.0,84051.0,0.0595777]
[1744900407342,0.05017893,84052.0,84051.0,0.4203777]
[1744900407646,0.16917423,84052.0,84051.0,0.4203777]
[1744900407840,0.16917423,84052.0,84051.0,0.4669777]
[1744900408642,0.05017893,84052.0,84051.0,0.4669777]
[1744900408847,0.16917423,84052.0,84051.0,0.4798767]
[1744900410142,0.16917423,84052.0,84051.0,0.36088]
[1744900410449,0.17017423,84052.0,84051.0,0.4798767]
[1744900412138,0.53097423,84052.0,84051.0,0.1190767]
[1744900412544,0.52997423,84052.0,84051.0,0.1190767]
[1744900412746,0.16917423,84052.0,84051.0,0.1190767]
[1744900415248,0.21507423,84052.0,84051.0,0.1190767]
[1744900416340,0.21507423,84052.0,84051.0,8e-05]
[1744900416547,0.059499,84051.0,84038.0,0.00017848]
[1744900416850,0.4798137,84039.0,84038.0,0.11919368]
[1744900417156,0.4798137,84039.0,84038.0,0.00017848]
[1744900417340,0.1190137,84039.0,84038.0,0.11919368]
[1744900417750,0.2137137,84039.0,84038.0,0.11927368]
[1744900418137,0.2137137,84039.0,84038.0,0.12165261]
[1744900418447,0.2137137,84039.0,84038.0,0.00263741]
[1744900418647,0.2137137,84039.0,84038.0,0.12165261]
[1744900418836,0.2137137,84039.0,84038.0,0.00263741]
[1744900419237,0.2137137,84039.0,84038.0,0.12165261]
[1744900421553,0.2137137,84039.0,84038.0,0.16755261]
[1744900425448,0.2137137,84039.0,84038.0,0.21535261]
[1744900425649,0.2137137,84039.0,84038.0,0.16755261]
[1744900425857,0.2137137,84039.0,84038.0,0.00263741]
[1744900426858,0.2137137,84039.0,84038.0,0.00255741]
[1744900427158,0.2137137,84039.0,84038.0,0.00263741]
[1744900427955,0.2237137,84039.0,84038.0,0.00263741]
[1744900430657,0.3608,84049.0,84047.0,0.0595011]
[1744900430965,0.0595005,84048.0,84047.0,0.1785021]
[1744900431161,0.22767651,84048.0,84047.0,0.18088103]
[1744900431360,0.27267651,84048.0,84047.0,0.00237893]
[1744900432761,0.27267651,84048.0,84047.0,0.00245893]
[1744900434873,0.27267651,84048.0,84047.0,0.12146133]
[1744900435165,0.22427651,84048.0,84047.0,0.16596133]
[1744900435672,0.1045005,84048.0,84047.0,0.16596133]
[1744900437571,0.1045005,84048.0,84047.0,0.12146133]
[1744900437774,0.1495005,84048.0,84047.0,0.12146133]
[1744900438068,0.1495005,84048.0,84047.0,0.00245893]
[1744900438269,0.1495005,84048.0,84047.0,0.12146133]
[1744900438462,0.1495005,84048.0,84047.0,0.00245893]
[1744900438973,0.1495005,84048.0,84047.0,0.00237893]
[1744900439164,0.1495005,84048.0,84047.0,0.00245893]
[1744900440963,0.1495005,84048.0,84047.0,0.00237893]
[1744900441160,0.1495005,84048.0,84047.0,0.00245893]
[1744900441661,0.1190137,84039.0,84035.0,0.000108]
[1744900441865,0.1190137,84039.0,84036.0,0.0595089]
[1744900442062,0.2581137,84039.0,84036.0,0.0595089]
[1744900442268,0.4481137,84039.0,84038.0,0.00255741]
[1744900442664,0.4481137,84039.0,84038.0,0.00263741]
[1744900442865,0.4481137,84039.0,84038.0,0.04683741]
[1744900444173,0.3090137,84039.0,84038.0,0.16585261]
[1744900445560,0.3090137,84039.0,84038.0,0.04683741]
[1744900445776,0.4019137,84039.0,84038.0,0.04683741]
[1744900446078,0.4019137,84039.0,84038.0,0.04675741]
[1744900446574,0.4019137,84039.0,84038.0,0.00255741]
[1744900446763,0.4019137,84039.0,84038.0,0.00263741]
[1744900446963,0.4019137,84039.0,84038.0,0.00255741]
[1744900447761,0.4019137,84039.0,84038.0,0.00263741]
[1744900449777,0.0595076,84038.0,84026.0,0.000108]
[1744900449976,0.1190364,84024.0,84023.0,0.1190363]
[1744900450273,0.1190364,84024.0,84023.0,0.16561523]
[1744900450474,0.1631364,84024.0,84023.0,0.16561523]
[1744900451170,0.1631364,84024.0,84023.0,0.00237893]
[1744900451373,0.2106364,84024.0,84023.0,0.00237893]
[1744900451561,0.2106364,84024.0,84023.0,0.16871533]
[1744900451873,0.2106364,84024.0,84023.0,0.04975893]
[1744900452068,0.2106364,84024.0,84023.0,0.00245893]
[1744900452269,0.2206364,84024.0,84023.0,0.00245893]
[1744900452471,0.2206364,84024.0,84023.0,0.00237893]
[1744900452660,0.2206364,84024.0,84023.0,0.00245893]
[1744900453969,0.2206364,84024.0,84023.0,0.04925893]
[1744900454364,0.2206364,84024.0,84023.0,0.00245893]
[1744900455476,0.2206364,84024.0,84023.0,0.00237893]
[1744900455863,0.1190392,84021.0,84020.0,0.00905232]
[1744900456081,0.1190421,84019.0,84018.0,0.0443]
[1744900456270,0.1190435,84018.0,84017.0,0.00511798]
[1744900456467,0.2143435,84018.0,84017.0,0.00511798]
[1744900456673,0.2143435,84018.0,84017.0,0.04949798]
[1744900457264,0.2143435,84018.0,84017.0,0.05187691]
[1744900457671,0.0595235,84016.0,84011.0,0.3608]
[1744900457866,0.1190506,84013.0,84011.0,0.3608]
[1744900458168,0.1290506,84013.0,84012.0,0.02287268]
[1744900458370,0.4898506,84013.0,84012.0,0.02287268]
[1744900459172,0.4898506,84013.0,84012.0,0.00971103]
[1744900459369,0.1190548,84010.0,84007.0,0.0443]
[1744900459565,0.1290548,84010.0,84009.0,0.11622099]
[1744900459776,0.01,84010.0,84009.0,0.23527719]
[1744900460079,0.0449,84012.0,84011.0,0.1190534]
[1744900460876,0.1190548,84010.0,84009.0,0.28445612]
[1744900461469,0.1639548,84010.0,84009.0,0.28445612]
[1744900461675,0.1639548,84010.0,84009.0,0.16539992]
[1744900461973,0.1639548,84010.0,84009.0,0.28445612]
[1744900462174,0.1639548,84010.0,84009.0,0.16539992]
[1744900462776,0.1639548,84010.0,84009.0,0.15250873]
[1744900463376,0.1739548,84010.0,84009.0,0.15250873]
[1744900463785,0.1739548,84010.0,84009.0,0.27156493]
[1744900465075,0.1739548,84010.0,84009.0,0.15250873]
[1744900466083,0.1739548,84010.0,84009.0,0.10570873]
[1744900466385,0.1785623,84024.0,84023.0,0.119035]
[1744900466687,0.0595157,84027.0,84024.0,0.0595169]
[1744900466875,0.0595157,84027.0,84026.0,0.1190322]
[1744900467083,0.059513,84031.0,84030.0,0.1190265]
[1744900467584,0.059513,84031.0,84030.0,0.13185084]
[1744900467785,0.059513,84031.0,84030.0,0.22265084]
[1744900467987,0.059513,84031.0,84030.0,0.0908]
[1744900468179,0.059513,84031.0,84030.0,0.04627893]
[1744900468482,0.305513,84031.0,84030.0,0.00245893]
[1744900468685,0.0595167,84026.0,84020.0,0.000108]
[1744900468886,0.4798364,84023.0,84014.0,0.1190486]
[1744900469185,0.4798364,84023.0,84010.0,0.10501376]
[1744900469186,0.1290364,84023.0,84022.0,0.00025848]
[1744900469986,0.2190364,84023.0,84022.0,0.04555848]
[1744900470186,0.2190364,84023.0,84022.0,0.04793741]
[1744900470989,0.5798364,84023.0,84022.0,0.00263741]
[1744900472183,0.5798364,84023.0,84022.0,0.00025848]
[1744900472579,0.1190548,84010.0,84009.0,0.09436]
[1744900472790,0.4898548,84010.0,84009.0,0.094468]
[1744900473090,0.4898548,84010.0,84009.0,0.10557421]
[1744900473272,0.01,84010.0,84009.0,0.22463041]
[1744900473478,0.0595212,84019.0,84018.0,0.1190421]
[1744900473881,0.1190449,84017.0,84016.0,0.1785685]
[1744900474083,0.1190449,84017.0,84016.0,0.18094743]
[1744900474381,0.1190449,84017.0,84016.0,0.00237893]
[1744900474988,0.1676449,84017.0,84016.0,0.12142523]
[1744900475687,0.1676449,84017.0,84016.0,0.12150523]
[1744900475985,0.1190449,84017.0,84016.0,0.12150523]
[1744900476580,0.0595187,84024.0,84016.0,0.00245893]
[1744900476786,0.1785647,84021.0,84020.0,0.1785554]
[1744900476988,0.2380856,84021.0,84020.0,0.1785554]
[1744900477186,0.2380856,84021.0,84020.0,0.06189793]
[1744900477790,0.2380856,84021.0,84020.0,0.00245893]
[1744900477991,0.2380856,84021.0,84020.0,0.00237893]
[1744900478175,0.2380856,84021.0,84020.0,0.00245893]
[1744900479092,0.2950856,84021.0,84020.0,0.00245893]
[1744900479391,0.2950856,84021.0,84020.0,8e-05]
[1744900479392,0.3426856,84021.0,84020.0,8e-05]
[1744900480479,0.1190548,84010.0,84009.0,0.10311528]
[1744900480679,0.1290548,84010.0,84009.0,0.10311528]
[1744900481190,0.1290548,84010.0,84009.0,0.10557421]
[1744900481493,0.2226548,84010.0,84009.0,0.10557421]
[1744900481688,0.5834548,84010.0,84009.0,0.10557421]
[1744900482389,0.2226548,84010.0,84009.0,0.10557421]
[1744900482693,0.1290548,84010.0,84009.0,0.22463041]
[1744900483893,0.1751548,84010.0,84009.0,0.22463041]
[1744900485290,0.1290548,84010.0,84009.0,0.22463041]
[1744900485597,0.1190548,84010.0,84009.0,0.22463041]
[1744900486395,0.1190548,84010.0,84009.0,0.13027041]
[1744900486589,0.1290548,84010.0,84009.0,0.13027041]
[1744900488295,0.1290548,84010.0,84009.0,0.13127041]
[1744900488996,0.1290548,84010.0,84009.0,0.13119041]
[1744900489193,0.1740548,84010.0,84009.0,0.13127041]
[1744900489389,0.1740548,84010.0,84001.0,0.00017848]
[1744900489390,0.1190662,84002.0,84001.0,0.00017848]
[1744900489590,0.4798662,84002.0,84001.0,0.00017848]
[1744900489791,0.1190662,84002.0,84001.0,0.00017848]
[1744900489989,0.4798662,84002.0,84001.0,0.00017848]
[1744900490194,0.2091662,84002.0,84001.0,0.00255741]
[1744900490383,0.5699662,84002.0,84001.0,0.00255741]
[1744900492188,0.5699662,84002.0,84001.0,0.05851199]
[1744900493490,0.5709662,84002.0,84001.0,0.10491199]
[1744900493684,0.2101662,84002.0,84001.0,0.10491199]
[1744900494800,0.1190733,83997.0,83996.0,0.00735846]
[1744900494995,0.1190803,83992.0,83991.0,0.00511957]
[1744900495189,0.3190803,83992.0,83991.0,0.01423219]
[1744900495388,0.3190803,83992.0,83991.0,0.00511957]
[1744900495592,0.1190959,83981.0,83980.0,0.05314383]
[1744900496195,0.1190959,83981.0,83980.0,0.05552276]
[1744900496389,0.4798959,83981.0,83980.0,0.05552276]
[1744900496585,0.5241959,83981.0,83980.0,0.05552276]
[1744900497186,0.5241959,83981.0,83980.0,0.06453721]
[1744900497511,0.4798959,83981.0,83980.0,0.11133721]
[1744900497690,0.5241959,83981.0,83980.0,0.11141721]
[1744900497998,0.5241959,83981.0,83980.0,0.11241721]
[1744900498584,0.5441959,83981.0,83980.0,0.02041721]
[1744900499000,0.53719157,83981.0,83980.0,0.02041721]
[1744900499201,0.49289157,83981.0,83980.0,0.02041721]
[1744900499391,0.3608,83981.0,83980.0,0.13951461]
[1744900499590,0.0595453,83985.0,83984.0,0.1190917]
[1744900499791,0.4203453,83985.0,83984.0,0.1190917]
[1744900499991,0.5394389,83985.0,83984.0,0.2097917]
[1744900500197,0.5394389,83985.0,83984.0,0.09307893]
[1744900500590,0.5394389,83985.0,83984.0,0.04647893]
[1744900500793,0.5394389,83985.0,83984.0,0.00337893]
[1744900501095,0.5394389,83985.0,83984.0,0.00437893]
[1744900501295,0.5394389,83985.0,83984.0,0.00345893]
[1744900502001,0.5394389,83985.0,83984.0,0.00245893]
[1744900502188,0.5494389,83985.0,83984.0,0.00245893]
[1744900502999,0.1190959,83981.0,83980.0,0.00628383]
[1744900503195,0.1191073,83973.0,83972.0,0.00019683]
[1744900503391,0.4799073,83973.0,83972.0,0.00900511]
[1744900503588,0.1191172,83966.0,83965.0,0.00512115]
[1744900503895,0.4799172,83966.0,83965.0,0.12423975]
[1744900504098,0.4799172,83966.0,83965.0,0.00520115]
[1744900504293,0.4799172,83966.0,83965.0,0.12669868]
[1744900504494,0.5699172,83966.0,83965.0,0.12661868]
[1744900504690,0.5699172,83966.0,83965.0,0.12669868]
[1744900505293,0.5699172,83966.0,83965.0,0.01641542]
[1744900505490,0.5799172,83966.0,83965.0,0.13553402]
[1744900505900,0.5799172,83966.0,83965.0,0.01641542]
[1744900506291,0.0595606,83964.0,83958.0,0.00019683]
[1744900506492,0.0595606,83964.0,83939.0,0.06470014]
[1744900506493,0.3608,83959.0,83947.0,0.12877425]
[1744900506794,0.3608,83959.0,83942.0,0.2421633]
[1744900506795,0.1191498,83943.0,83942.0,0.2421633]
[1744900506992,0.1191541,83940.0,83939.0,0.00512274]
[1744900507201,0.3991541,83940.0,83939.0,0.01402509]
[1744900507404,0.3991541,83940.0,83939.0,0.00512274]